bitfinex-derivatives/quotes_ETHF0:USTF0_20250530
["timestamp","ask_amount","ask_price","bid_price","bid_amount"]
[1748596378109,2.04324,2614.2,2614.1,3.871]
[1748596378507,2.04324,2614.2,2614.1,4.63577]
[1748596378705,2.04324,2614.2,2614.1,3.871]
[1748596380717,7.04324,2614.2,2614.1,3.871]
[1748596380918,8.11098627,2614.2,2614.1,3.871]
[1748596381213,3.11098627,2614.2,2614.1,3.871]
[1748596381515,3.97251,2614.3,2614.2,0.76474]
[1748596381705,3.97251,2614.3,2614.2,2.03964]
[1748596381908,3.97251,2614.3,2614.2,2.68454]
[1748596382416,3.97251,2614.3,2614.2,1.9198]
[1748596382715,3.97251,2614.3,2614.2,2.68454]
[1748596383015,0.76471,2614.3,2614.2,1.2749]
[1748596383210,0.76471,2614.3,2614.2,2.03964]
[1748596383414,3.2078,2614.6,2614.2,1.2749]
[1748596383621,0.76468,2614.5,2614.4,0.76465]
[1748596383807,0.00573822,2614.7,2614.3,3.14358]
[1748596384119,0.00573822,2614.7,2614.4,3.869]
[1748596384318,0.76468,2614.5,2614.4,5.1008]
[1748596384514,0.76468,2614.5,2614.4,1.2318]
[1748596384718,0.76468,2614.5,2614.4,5.1008]
[1748596385016,0.76468,2614.5,2614.4,5.86548]
[1748596385315,0.00573822,2614.7,2614.4,5.1008]
[1748596385515,0.00573822,2614.7,2614.6,0.76463]
[1748596392320,0.00573822,2614.7,2614.6,1.97203]
[1748596393030,0.77033822,2614.7,2614.6,5.0764]
[1748596393322,0.77033822,2614.7,2614.6,3.869]
[1748596393715,0.76465,2614.5,2614.4,0.06993857]
[1748596393912,0.76465,2614.5,2614.4,3.93893857]
[1748596394113,0.76465,2614.5,2614.4,3.869]
[1748596394523,1.97925,2614.5,2614.4,3.869]
[1748596394719,3.2078,2614.6,2614.5,0.76465]
[1748596394924,0.00573822,2614.7,2614.6,0.76462]
[1748596395121,0.77033822,2614.7,2614.6,0.76462]
[1748596395427,0.77033822,2614.7,2614.6,3.869]
[1748596395613,0.77033822,2614.7,2614.6,4.63363]
[1748596395816,0.77033822,2614.7,2614.6,3.869]
[1748596396017,0.00573822,2614.7,2614.4,0.06993857]
[1748596396217,3.97243,2614.6,2614.5,3.869]
[1748596396423,0.76471,2614.4,2614.3,0.7647]
[1748596396628,0.76471,2614.4,2614.3,4.6337]
[1748596396830,0.76471,2614.4,2614.3,3.869]
[1748596397628,0.76471,2614.3,2614.2,3.869]
[1748596397819,2.62581,2614.3,2614.2,3.869]
[1748596398021,5.83361,2614.3,2614.2,3.869]
[1748596399017,0.76477,2614.1,2614.0,0.06993857]
[1748596399226,0.7648,2614.0,2613.9,3.869]
[1748596399426,5.2417,2614.0,2613.9,3.869]
[1748596402230,3.9726,2614.0,2613.9,3.869]
[1748596402423,3.9726,2614.0,2613.9,5.1495]
[1748596403629,3.9726,2614.0,2613.9,3.869]
[1748596405127,0.76495,2613.5,2613.4,3.87]
[1748596406226,0.76495,2613.5,2613.4,4.63498]
[1748596406424,0.76495,2613.5,2613.4,5.97318]
[1748596407032,0.76495,2613.5,2613.4,6.58178]
[1748596407227,3.8388,2613.7,2613.6,0.76492]
[1748596407529,3.9726,2614.0,2613.9,0.76483]
[1748596407828,3.2078,2614.0,2613.9,4.63483]
[1748596408037,3.97253,2614.3,2614.2,0.76472]
[1748596408333,3.2078,2614.3,2614.2,0.83465857]
[1748596408536,3.21353822,2614.7,2614.6,0.76463]
[1748596408722,0.77033822,2614.7,2614.6,4.63463]
[1748596408928,0.00573822,2614.7,2614.6,4.63463]
[1748596409128,0.77033822,2614.7,2614.6,4.63463]
[1748596409434,0.00573822,2614.7,2614.6,9.15433]
[1748596409641,0.00573822,2614.7,2614.6,9.77113]
[1748596409642,0.77033822,2614.7,2614.6,9.77113]
[1748596409934,0.77033822,2614.7,2614.6,6.56333]
[1748596410838,0.77033822,2614.7,2614.6,5.7987]
[1748596411030,0.00573822,2614.7,2614.6,3.87]
[1748596411227,6.91728822,2614.7,2614.2,0.06993857]
[1748596411431,6.91728822,2614.7,2614.1,3.87]
[1748596411432,0.76474,2614.2,2614.1,3.87]
[1748596413441,1.8831,2614.4,2614.2,0.06993857]
[1748596413641,0.76474,2614.3,2614.2,0.06993857]
[1748596415041,0.6259,2614.6,2614.3,0.76471]
[1748596415337,0.76467,2614.5,2614.4,1.2536]
[1748596415839,0.76467,2614.5,2614.4,2.01828]
[1748596416140,0.76467,2614.5,2614.4,1.2536]
[1748596416635,0.76467,2614.5,2614.4,2.01828]
[1748596417939,0.76465,2614.6,2614.5,0.76465]
[1748596418143,0.76463,2614.6,2614.5,3.868]
[1748596418439,0.76463,2614.6,2614.5,4.5287]
[1748596418641,0.76463,2614.6,2614.5,5.7696]
[1748596420635,0.76471,2614.3,2614.2,0.71833857]
[1748596420844,0.76471,2614.3,2614.2,0.06993857]
[1748596421642,0.76471,2614.3,2614.2,0.83465857]
[1748596423046,0.76471,2614.3,2614.2,0.06993857]
[1748596424749,0.76471,2614.3,2614.2,0.83467857]
[1748596425350,0.76471,2614.3,2614.2,0.06993857]
[1748596425650,0.76471,2614.3,2614.2,2.08404]
[1748596426553,0.76471,2614.3,2614.2,2.15397857]
[1748596427253,0.76471,2614.3,2614.2,1.38923857]
[1748596427649,0.76471,2614.3,2614.2,1.3193]
[1748596427849,0.76471,2614.3,2614.2,2.08404]
[1748596428659,0.76471,2614.3,2614.2,2.15397857]
[1748596429156,0.76471,2614.3,2614.2,1.38923857]
[1748596430045,0.76471,2614.3,2614.2,0.06993857]
[1748596430750,1.40211,2614.3,2614.2,0.06993857]
[1748596431153,1.40211,2614.3,2614.2,0.83467857]
[1748596431757,1.40211,2614.3,2614.2,0.06993857]
[1748596433560,1.40211,2614.3,2614.2,0.83467857]
[1748596433753,1.40211,2614.3,2614.2,0.06993857]
[1748596434558,1.40211,2614.3,2614.2,0.83467857]
[1748596434859,1.40211,2614.3,2614.2,0.06993857]
[1748596435251,1.40211,2614.3,2614.2,0.83467857]
[1748596435456,1.40211,2614.3,2614.2,0.06993857]
[1748596436860,0.76486,2613.8,2613.7,3.868]
[1748596437356,0.76486,2613.8,2613.7,4.63287]
[1748596437658,0.76486,2613.8,2613.7,3.868]
[1748596438561,1.98856,2613.8,2613.7,3.868]
[1748596439960,0.76486,2613.8,2613.7,3.868]
[1748596441260,0.76492,2613.6,2613.5,1.2456]
[1748596441558,0.76495,2613.5,2613.4,5.1667]
[1748596441859,0.76498,2613.4,2613.3,39.82633822]
[1748596442162,0.76498,2613.4,2613.3,43.69433822]
[1748596442553,0.76498,2613.4,2613.3,44.45934822]
[1748596442759,0.6342,2613.9,2613.3,43.69433822]
[1748596442958,0.76493,2613.6,2613.5,0.76492]
[1748596443864,0.76495,2613.5,2613.4,2.00815]
[1748596444160,0.76495,2613.5,2613.4,1.2432]
[1748596444361,0.76495,2613.5,2613.4,5.1102]
[1748596447657,0.76495,2613.5,2613.4,5.87518]
[1748596448662,0.76495,2613.5,2613.4,5.1102]
[1748596448968,0.76495,2613.5,2613.4,5.87518]
[1748596449467,0.6342,2613.9,2613.4,5.1102]
[1748596449665,0.7649,2613.7,2613.6,0.7649]
[1748596449863,3.97261,2614.0,2613.9,0.76483]
[1748596450064,3.2078,2614.6,2613.9,3.867]
[1748596450269,3.8216,2614.6,2614.1,3.2078]
[1748596450465,0.7647,2614.4,2614.3,0.7647]
[1748596450766,0.7647,2614.4,2614.3,5.8688]
[1748596450967,0.7647,2614.4,2614.3,5.1041]
[1748596451271,0.7647,2614.4,2614.3,1.2371]
[1748596451571,0.76474,2614.2,2614.1,7.0748]
[1748596452168,0.76474,2614.2,2614.1,8.3119]
[1748596452565,0.76473,2614.3,2614.2,0.76473]
[1748596452770,0.76473,2614.3,2614.2,1.2371]
[1748596453468,0.76469,2614.4,2614.3,0.76471]
[1748596453768,0.76469,2614.4,2614.3,1.39731]
[1748596453968,0.76469,2614.4,2614.3,0.6326]
[1748596454370,0.76469,2614.4,2614.3,2.61171]
[1748596454672,0.76468,2614.4,2614.3,2.61171]
[1748596455267,0.76467,2614.5,2614.4,0.76467]
[1748596455467,0.76467,2614.5,2614.4,9.05387]
[1748596455668,0.76467,2614.5,2614.4,8.2892]
[1748596456970,0.76467,2614.5,2614.4,9.05388]
[1748596457170,0.76467,2614.5,2614.4,8.2892]
[1748596457568,0.00573822,2614.7,2614.4,5.84608]
[1748596457773,0.00573822,2614.7,2614.4,5.0814]
[1748596457973,0.76465,2614.5,2614.4,5.0814]
[1748596458561,0.76465,2614.5,2614.4,5.84607]
[1748596458765,0.76465,2614.5,2614.4,1.2144]
[1748596458965,0.76474,2614.2,2614.1,0.76476]
[1748596459272,0.76477,2614.1,2614.0,7.0738]
[1748596459669,0.76477,2614.1,2614.0,8.3862]
[1748596460370,0.76477,2614.1,2614.0,7.0738]
[1748596460569,0.76477,2614.1,2614.0,3.866]
[1748596460771,0.95597,2614.1,2614.0,3.866]
[1748596463381,0.95597,2614.1,2614.0,5.1868]
[1748596464673,0.1912,2614.1,2614.0,5.9516]
[1748596465080,0.95597,2614.1,2614.0,5.1868]
[1748596465272,0.95597,2614.1,2614.0,5.9516]
[1748596465582,0.1912,2614.1,2614.0,5.9516]
[1748596466267,0.76463,2614.6,2614.5,0.76463]
[1748596466473,0.00573822,2614.7,2614.6,0.76462]
[1748596466675,0.77033822,2614.7,2614.6,2.08852]
[1748596467268,0.00573822,2614.7,2614.6,2.08852]
[1748596471185,0.00573822,2614.7,2614.6,5.95452]
[1748596472682,0.77033822,2614.7,2614.6,5.95452]
[1748596472883,0.00573822,2614.7,2614.6,5.95452]
[1748596474282,0.77033822,2614.7,2614.6,5.95452]
[1748596474785,0.77033822,2614.7,2614.6,5.95152]
[1748596475187,0.00573822,2614.7,2614.6,5.95152]
[1748596475480,0.77033822,2614.7,2614.6,5.1869]
[1748596476284,0.77033822,2614.7,2614.6,3.863]
[1748596476485,0.77033822,2614.7,2614.6,4.62763]
[1748596477083,0.00573822,2614.7,2614.6,4.62763]
[1748596477291,0.77033822,2614.7,2614.6,4.62763]
[1748596477586,0.77033822,2614.7,2614.6,5.87083]
[1748596478581,0.77033822,2614.7,2614.6,4.62763]
[1748596479188,0.77034822,2614.7,2614.6,3.863]
[1748596479390,0.77034822,2614.7,2614.6,4.62763]
[1748596479688,0.00573822,2614.7,2614.6,4.62763]
[1748596479884,0.00573822,2614.7,2614.6,5.87083]
[1748596485288,0.77033822,2614.7,2614.6,2.00783]
[1748596485490,0.00573822,2614.7,2614.6,5.87083]
[1748596486288,0.00573822,2614.7,2614.6,6.47763]
[1748596489591,0.00573822,2614.7,2614.6,6.54756857]
[1748596491587,0.00573822,2614.7,2614.6,6.47763]
[1748596494291,0.00573822,2614.7,2614.6,9.68543]
[1748596494491,0.77033822,2614.7,2614.6,9.68543]
[1748596495395,1.91122,2615.1,2614.7,0.76457]
[1748596495589,0.76454,2614.9,2614.8,1.2079]
[1748596496888,0.76454,2614.9,2614.8,1.97247]
[1748596497096,0.76454,2614.9,2614.8,1.2079]
[1748596500303,0.76454,2614.9,2614.8,1.97247]
[1748596500801,0.76454,2614.9,2614.8,1.2079]
[1748596500999,8.2078,2614.9,2613.9,3.863]
[1748596501206,1.26243822,2615.1,2613.9,3.863]
[1748596501207,0.7648,2614.0,2613.9,3.863]
[1748596501905,0.76498,2613.4,2613.3,41.7828]
[1748596502100,0.00573822,2613.6,2613.3,46.8914]
[1748596502310,0.00573822,2613.6,2613.5,0.76495]
[1748596502707,0.00573822,2613.6,2613.5,2.01055]
[1748596503005,0.77065822,2613.6,2613.5,1.2456]
[1748596503200,0.77065822,2613.6,2613.5,3.863]
[1748596503811,0.00573822,2613.6,2613.5,4.62795]
[1748596503997,0.77065822,2613.6,2613.5,4.62795]
[1748596504201,0.77065822,2613.6,2613.5,5.1086]
[1748596506017,0.77065822,2613.6,2613.5,5.87355]
[1748596506509,0.00573822,2613.6,2613.5,5.87355]
[1748596510711,0.00573822,2613.6,2613.5,3.863]
[1748596511013,0.77065822,2613.6,2613.5,3.863]
[1748596511909,2.60105822,2613.6,2613.5,3.863]
[1748596514815,5.80885822,2613.6,2613.5,3.863]
[1748596515116,0.76498,2613.4,2613.3,38.575]
[1748596515317,0.76498,2613.4,2613.3,42.436]
[1748596516818,0.76498,2613.4,2613.3,43.20101]
[1748596517117,3.21353822,2613.6,2613.5,0.76495]
[1748596517318,0.00573822,2613.6,2613.5,0.76495]
[1748596517717,0.00573822,2613.6,2613.5,1.39145]
[1748596518118,0.77065822,2613.6,2613.5,1.39145]
[1748596519019,0.77065822,2613.6,2613.5,1.46138857]
[1748596519223,0.77065822,2613.6,2613.5,0.06993857]
[1748596520220,0.77066822,2613.6,2613.5,0.76495]
[1748596520420,0.77066822,2613.6,2613.5,2.07125]
[1748596521830,0.77066822,2613.6,2613.5,1.3063]
[1748596522427,0.76498,2613.4,2613.3,38.575]
[1748596522728,0.76498,2613.4,2613.3,42.436]
[1748596523423,2.00138,2613.4,2613.3,42.436]
[1748596525625,2.00138,2613.4,2613.3,43.20101]
[1748596525924,0.76498,2613.4,2613.3,42.436]
[1748596527129,2.05948,2613.4,2613.3,42.436]
[1748596528221,2.05948,2613.4,2613.3,43.20101]
[1748596528418,0.76496,2613.5,2613.4,0.76498]
[1748596528623,0.76496,2613.5,2613.4,2.04968]
[1748596528826,0.76496,2613.5,2613.4,2.71498]
[1748596529429,0.77067822,2613.6,2613.5,0.76495]
[1748596529632,0.77067822,2613.6,2613.5,1.2091]
[1748596529830,0.77067822,2613.6,2613.5,1.97405]
[1748596530025,0.00573822,2613.6,2613.5,1.97405]
[1748596530329,3.2078,2614.3,2613.7,0.76489]
[1748596530529,0.6358,2614.4,2614.3,0.76471]
[1748596530728,5.1191,2615.0,2614.3,3.861]
[1748596530922,5.1191,2615.0,2614.4,1.2091]
[1748596530923,3.70840207,2614.9,2614.4,1.2091]
[1748596531125,3.2078,2615.4,2614.6,3.2078]
[1748596531324,0.76448,2615.1,2615.0,3.97229]
[1748596531638,0.76448,2615.1,2615.0,3.2078]
[1748596532025,0.76448,2615.1,2615.0,4.4169]
[1748596532227,0.00573822,2615.3,2615.1,0.76447]
[1748596532526,0.77016822,2615.3,2615.2,3.861]
[1748596532723,0.77016822,2615.3,2615.2,4.14968425]
[1748596532920,0.77016822,2615.3,2615.2,4.91352098]
[1748596533127,0.77016822,2615.3,2615.2,3.861]
[1748596533529,0.77016822,2615.3,2615.2,4.14926941]
[1748596533827,0.77016822,2615.3,2615.2,4.14889419]
[1748596534334,0.77016822,2615.3,2615.2,4.14849471]
[1748596534525,0.77016822,2615.3,2615.2,3.861]
[1748596535535,0.76448,2615.1,2615.0,3.2078]
[1748596535828,0.76448,2615.1,2615.0,7.0648]
[1748596536032,2.08607,2615.2,2615.0,7.0648]
[1748596536231,0.76447,2615.2,2615.0,7.82931]
[1748596536636,0.77017822,2615.3,2615.0,7.0648]
[1748596536833,0.00573822,2615.3,2615.2,0.76445]
[1748596537440,0.76439,2615.4,2615.3,0.76441]
[1748596537631,1.91066,2615.9,2615.3,4.62141]
[1748596537833,1.91077,2615.7,2615.2,0.6355]
[1748596538128,0.76442,2615.3,2615.2,0.6355]
[1748596538334,0.76445,2615.2,2615.1,0.6524]
[1748596538538,0.76445,2615.2,2615.1,4.5094]
[1748596539330,0.76448,2615.1,2615.0,3.2078]
[1748596539529,0.76448,2615.1,2615.0,7.0648]
[1748596541538,0.76448,2615.1,2615.0,7.82931]
[1748596541840,0.76444,2615.3,2615.2,0.76444]
[1748596542044,0.76446,2615.2,2615.1,0.76446]
[1748596542640,0.00573822,2615.4,2615.0,7.0648]
[1748596542840,0.76448,2615.2,2615.1,0.76447]
[1748596543641,0.76444,2615.3,2615.2,0.76444]
[1748596543837,0.00573822,2615.4,2615.0,7.0648]
[1748596544035,0.76448,2615.1,2615.0,7.8293]
[1748596544234,0.76448,2615.1,2615.0,7.0648]
[1748596544534,0.76448,2615.1,2615.0,7.82931]
[1748596544733,0.76448,2615.1,2615.0,7.0648]
[1748596545033,0.76448,2615.1,2615.0,7.82931]
[1748596545234,0.76448,2615.1,2615.0,7.0648]
[1748596545434,0.76448,2615.1,2615.0,7.82931]
[1748596545630,0.76448,2615.1,2615.0,7.0638]
[1748596547154,5.76448,2615.1,2615.0,3.856]
[1748596547333,0.76448,2615.1,2615.0,3.856]
[1748596547535,0.76457,2614.8,2614.7,3.86173822]
[1748596547737,0.76457,2614.8,2614.7,0.00573822]
[1748596548446,2.01587,2614.8,2614.7,0.00573822]
[1748596549743,0.76457,2614.8,2614.7,0.00573822]
[1748596550253,2.01587,2614.8,2614.7,0.00573822]
[1748596551747,0.76465,2614.5,2614.4,3.2078]
[1748596551947,0.76465,2614.5,2614.4,7.0638]
[1748596553254,0.76462,2614.7,2614.4,7.0638]
[1748596553449,0.76462,2614.6,2614.5,1.3376]
[1748596553755,0.76462,2614.6,2614.5,5.1936]
[1748596554256,0.76462,2614.6,2614.5,1.3376]
[1748596554444,0.76462,2614.6,2614.5,5.95825]
[1748596554848,0.76455,2614.9,2614.8,0.76454]
[1748596555155,0.76455,2614.9,2614.5,5.1936]
[1748596555156,0.76453,2615.0,2614.9,0.7645]
[1748596555356,0.76453,2615.0,2614.9,3.856]
[1748596555757,0.76453,2615.0,2614.9,5.1936]
[1748596556952,0.76453,2615.0,2614.9,5.95814]
[1748596557164,0.76453,2615.0,2614.9,5.1936]
[1748596557457,0.76453,2615.0,2614.9,5.95814]
[1748596557652,0.76453,2615.0,2614.9,5.1936]
[1748596557953,0.76453,2615.0,2614.9,5.95814]
[1748596558559,0.76451,2615.1,2615.0,0.76449]
[1748596558751,0.00573822,2615.4,2615.0,4.4731]
[1748596558950,0.76448,2615.1,2615.0,5.23759]
[1748596559453,0.76448,2615.1,2615.0,1.2653]
[1748596560146,0.00573822,2615.4,2614.7,3.2078]
[1748596560347,0.76457,2614.8,2614.7,3.2078]
[1748596560555,0.76457,2614.8,2614.7,7.82839]
[1748596561358,0.76447,2615.2,2615.1,0.76446]
[1748596561559,0.76445,2615.2,2615.1,3.856]
[1748596562056,0.76445,2615.2,2615.1,4.62048]
[1748596562252,0.76445,2615.2,2615.1,4.62047]
[1748596562756,0.76445,2615.2,2615.1,3.856]
[1748596563462,0.76444,2615.3,2615.2,0.76443]
[1748596563657,0.77015822,2615.4,2615.3,0.76442]
[1748596564158,0.76442,2615.3,2615.2,1.40193]
[1748596565265,0.76442,2615.3,2615.2,0.6375]
[1748596565454,0.76442,2615.3,2615.2,4.4895]
[1748596565956,0.00573822,2615.4,2615.3,0.76442]
[1748596566151,0.18955482,2615.4,2615.3,0.76442]
[1748596566353,0.18955376,2615.4,2615.3,3.97222]
[1748596567055,0.00573822,2615.4,2615.3,3.97222]
[1748596567354,0.76442,2615.3,2615.2,0.6375]
[1748596567554,0.9474902,2615.3,2615.2,4.4895]
[1748596568250,0.94748679,2615.3,2615.2,4.4895]
[1748596568455,0.94749026,2615.3,2615.2,4.4895]
[1748596568657,0.94748702,2615.3,2615.2,4.4895]
[1748596568952,0.76442,2615.3,2615.2,5.25395]
[1748596569350,0.94747853,2615.3,2615.2,5.25395]
[1748596569555,0.94747853,2615.3,2615.2,3.852]
[1748596569760,2.84637853,2615.3,2615.2,3.852]
[1748596570059,2.84636413,2615.3,2615.2,3.852]
[1748596570364,2.66332,2615.3,2615.2,3.852]
[1748596570568,0.1830345,2615.3,2615.2,4.61645]
[1748596570756,0.00573822,2615.4,2615.3,0.76442]
[1748596570955,0.18877427,2615.4,2615.3,1.41832]
[1748596571257,0.95316427,2615.4,2615.3,0.6539]
[1748596571461,0.77012822,2615.4,2615.3,0.6539]
[1748596571662,0.95504064,2615.4,2615.3,4.5059]
[1748596571850,0.95504064,2615.4,2615.3,1.41832]
[1748596572157,0.77012822,2615.4,2615.3,5.27032]
[1748596572462,0.19064103,2615.4,2615.3,5.27032]
[1748596572659,0.95503103,2615.4,2615.3,5.27032]
[1748596572860,0.95418975,2615.4,2615.3,4.5059]
[1748596573159,0.9541875,2615.4,2615.3,5.27032]
[1748596573465,0.76445,2615.2,2615.1,3.97226]
[1748596573664,0.18402686,2615.2,2615.1,7.82426]
[1748596573957,0.77014822,2615.4,2615.3,0.76442]
[1748596574168,0.95443544,2615.4,2615.3,0.76442]
[1748596574360,0.95441544,2615.4,2615.3,0.76442]
[1748596574666,0.77012822,2615.4,2615.3,0.76442]
[1748596576061,0.00573822,2615.4,2615.3,0.76442]
[1748596576364,0.76426,2615.9,2615.8,0.76426]
[1748596576563,0.76426,2615.9,2615.8,4.61526]
[1748596577267,3.2078,2616.7,2615.9,1.91056]
[1748596577459,0.76408,2616.5,2616.4,0.76408]
[1748596577759,0.76408,2616.5,2616.4,4.61508]
[1748596577960,0.76408,2616.5,2616.4,3.851]
[1748596578363,0.76408,2616.5,2616.4,5.0589]
[1748596580165,0.76408,2616.5,2616.4,3.851]
[1748596580657,0.76413,2616.3,2616.2,1.2079]
[1748596580863,0.76413,2616.3,2616.2,5.0589]
[1748596582473,0.76416,2616.2,2616.1,3.2078]
[1748596582663,0.76424,2615.9,2615.8,3.2078]
[1748596582863,0.76424,2615.9,2615.8,7.0588]
[1748596583058,1.3231,2616.1,2615.8,7.0588]
[1748596583059,0.76423,2616.0,2615.9,0.76423]
[1748596583360,1.4268,2616.1,2616.0,0.76421]
[1748596583566,1.9234,2616.5,2616.1,0.76416]
[1748596583769,0.76417,2616.2,2616.1,0.76416]
[1748596583960,0.76417,2616.2,2616.1,4.61516]
[1748596584158,0.76415,2616.3,2616.2,0.76414]
[1748596586361,0.76416,2616.2,2616.1,4.61517]
[1748596586562,0.76415,2616.3,2616.2,0.76415]
[1748596587268,1.38559,2616.5,2616.4,0.7641]
[1748596587458,0.76409,2616.5,2616.4,0.7641]
[1748596587865,0.00573822,2616.6,2616.1,7.0588]
[1748596588067,0.76416,2616.2,2616.1,3.97198]
[1748596588366,0.76415,2616.3,2616.2,0.76415]
[1748596588774,0.76416,2616.2,2616.1,7.82197]
[1748596589072,0.76415,2616.3,2616.1,7.0578]
[1748596589267,0.76412,2616.4,2616.3,0.76411]
[1748596589471,0.76414,2616.3,2616.2,0.76414]
[1748596589664,0.76414,2616.3,2616.2,4.61414]
[1748596590067,0.76411,2616.4,2616.3,0.76411]
[1748596590366,0.76413,2616.3,2616.2,4.61413]
[1748596590572,0.76413,2616.3,2616.2,3.85]
[1748596591473,0.75533005,2616.3,2616.2,4.61416]
[1748596592069,0.75533005,2616.3,2616.2,3.85]
[1748596592575,0.75533005,2616.3,2616.2,4.61416]
[1748596592874,0.75533005,2616.3,2616.2,0.76416]
[1748596593178,0.75533005,2616.3,2616.2,3.85]
[1748596593981,0.76416,2616.2,2616.1,3.97196]
[1748596594182,0.76416,2616.2,2616.1,7.82196]
[1748596595177,0.76416,2616.2,2616.1,4.61416]
[1748596595476,0.76416,2616.2,2616.1,7.82196]
[1748596595666,0.76415,2616.3,2616.2,0.76414]
[1748596595872,0.76978822,2616.6,2616.1,8.96821]
[1748596596067,0.00573822,2616.6,2616.5,0.76407]
[1748596596270,0.00573822,2616.6,2616.5,4.61007]
[1748596596474,0.00573822,2616.6,2616.5,5.27957]
[1748596597478,0.76977822,2616.6,2616.5,5.27957]
[1748596597676,0.00573822,2616.6,2616.5,5.27957]
[1748596597880,0.00573822,2616.6,2616.5,6.58827]
[1748596598668,0.00573822,2616.6,2616.5,11.58827]
[1748596598886,0.76385,2617.3,2616.5,10.8242]
[1748596599075,3.2078,2617.7,2617.1,3.2078]
[1748596599269,3.2078,2617.7,2617.2,7.11155]
[1748596599470,0.76381,2617.4,2617.3,1.2195]
[1748596600477,1.91517822,2617.6,2617.1,3.21353822]
[1748596600681,1.91517822,2617.6,2617.2,3.846]
[1748596600682,2.59174,2617.3,2617.2,3.846]
[1748596600982,1.36974,2617.3,2617.2,3.846]
[1748596601381,1.36974,2617.3,2617.2,5.0655]
[1748596601577,0.76383,2617.3,2617.2,5.82935]
[1748596601786,0.76381,2617.4,2617.3,0.76382]
[1748596601978,0.76381,2617.4,2617.3,1.98332]
[1748596602280,0.76381,2617.4,2617.3,1.2195]
[1748596602788,0.76381,2617.4,2617.3,1.98334]
[1748596603585,0.76381,2617.4,2617.3,1.2195]
[1748596603789,0.76381,2617.4,2617.3,1.98333]
[1748596604281,0.76381,2617.4,2617.3,1.98332]
[1748596604989,3.2078,2618.3,2617.5,0.76378]
[1748596605201,1.90867,2618.6,2617.8,3.2078]
[1748596605398,1.2995,2618.5,2617.9,2.5164]
[1748596605582,0.76359,2618.2,2618.0,4.60862]
[1748596605888,1.2995,2618.5,2618.2,0.76357]
[1748596606094,0.76353,2618.4,2618.1,4.48413822]
[1748596606285,0.76354,2618.3,2618.2,2.03416]
[1748596607094,0.76354,2618.3,2618.2,1.2706]
[1748596607491,0.76354,2618.3,2618.2,5.1156]
[1748596609497,0.83347857,2618.3,2618.2,5.87917]
[1748596609696,0.83347857,2618.3,2618.2,5.1156]
[1748596610091,0.76357,2618.2,2618.1,3.21353822]
[1748596610392,2.65087,2618.2,2618.1,0.00573822]
[1748596614300,7.65087,2618.2,2618.1,0.00573822]
[1748596614706,0.76372,2617.7,2617.6,7.0518]
[1748596615608,1.3035,2617.9,2617.6,7.0518]
[1748596615816,0.76372,2617.7,2617.6,7.81553]
[1748596616304,0.76372,2617.7,2617.6,7.0518]
[1748596616707,0.76372,2617.7,2617.6,7.81555]
[1748596617107,0.76372,2617.7,2617.6,7.0518]
[1748596617409,0.76372,2617.7,2617.6,7.81555]
[1748596617712,0.76372,2617.7,2617.6,3.2078]
[1748596617911,0.76372,2617.7,2617.6,7.0518]
[1748596619806,0.76372,2617.7,2617.6,3.2078]
[1748596620014,0.76372,2617.7,2617.6,7.0518]
[1748596622813,0.76372,2617.7,2617.6,3.844]
[1748596623817,0.76378,2617.5,2617.4,0.00573822]
[1748596624210,5.76378,2617.5,2617.4,0.00573822]
[1748596624511,7.68058,2617.5,2617.4,0.00573822]
[1748596624714,1.36808,2617.5,2617.4,0.00573822]
[1748596624920,0.76378,2617.5,2617.4,0.00573822]
[1748596625114,0.76378,2617.5,2617.4,0.64753822]
[1748596626518,0.76378,2617.5,2617.4,0.00573822]
[1748596626719,0.76378,2617.5,2617.4,3.84673822]
[1748596627521,2.03398,2617.5,2617.4,3.84673822]
[1748596628315,2.03398,2617.5,2617.4,0.00573822]
[1748596628316,7.03398,2617.5,2617.4,0.00573822]
[1748596628516,2.03398,2617.5,2617.4,0.00573822]
[1748596628817,0.76392,2617.0,2616.9,7.6981]
[1748596629020,0.76392,2617.0,2616.9,3.841]
[1748596630118,0.76398,2616.8,2616.7,0.00573822]
[1748596630916,3.8218,2617.1,2616.7,0.00573822]
[1748596631122,0.76394,2617.0,2616.9,0.76393]
[1748596631427,0.76392,2617.0,2616.9,4.60592]
[1748596631924,3.2078,2617.1,2617.0,0.76392]
[1748596632123,3.97169,2617.1,2617.0,1.37052]
[1748596632328,0.76389,2617.1,2617.0,1.37052]
[1748596632518,0.00573822,2617.2,2617.1,0.76389]
[1748596633123,0.76959822,2617.2,2617.1,0.76389]
[1748596635128,0.76389,2617.1,2617.0,1.3705]
[1748596635635,0.00573822,2617.2,2617.1,0.76389]
[1748596637124,0.06993857,2617.7,2617.6,0.76375]
[1748596637327,0.06993857,2617.7,2617.6,7.81355]
[1748596638230,0.06993857,2617.7,2617.6,12.81355]
[1748596638830,0.00573822,2617.9,2617.8,0.76369]
[1748596640126,0.07567679,2617.9,2617.8,0.76369]
[1748596641324,0.07567679,2617.9,2617.8,4.60569]
[1748596641827,0.83933679,2617.9,2617.8,0.76369]
[1748596642126,0.83933679,2617.9,2617.8,4.60469]
[1748596642426,0.83933679,2617.9,2617.8,3.841]
[1748596642625,0.07567679,2617.9,2617.8,4.60469]
[1748596643225,0.83933679,2617.9,2617.8,4.60469]
[1748596643424,0.07567679,2617.9,2617.8,4.60469]
[1748596644119,0.83933679,2617.9,2617.8,3.841]
[1748596644323,0.83933679,2617.9,2617.8,4.60469]
[1748596644919,0.83933679,2617.9,2617.8,3.841]
[1748596645831,0.83933679,2617.9,2617.8,4.60469]